[Event "Titled Tuesday Blitz May 23 Late 2023"]
[White "Kovacevic, Radmila"]
[Black "Prado, Alexandra"]
[WhiteFideId "933171"]
[BlackFideId "3301346"]
[WhiteElo "2194"]
[BlackElo "1759"]
[Result "1-0"]
[Round "07"]
[TimeControl "180+2"]
[Date "2023.05.23"]
[WhiteClock "0:00:23"]
[BlackClock "0:00:01"]

1. e4 {[%clk 0:03:00]}  c5 {[%clk 0:02:55]} 2. d4 {[%clk 0:02:57]}  cxd4 {[%clk 0:02:50]} 3. c3 {[%clk 0:02:56]}  dxc3 {[%clk 0:02:46]} 4. Bc4 {[%clk 0:02:55]}  g6 {[%clk 0:02:32]} 5. Qd4 {[%clk 0:02:44]}  Nf6 {[%clk 0:02:27]} 6. e5 {[%clk 0:02:41]}  Nc6 {[%clk 0:02:27]} 7. Qxc3 {[%clk 0:02:39]}  Ng4 {[%clk 0:01:54]} 8. Bxf7+ {[%clk 0:02:31]}  Kxf7 {[%clk 0:01:48]} 9. Qf3+ {[%clk 0:02:20]}  Kg8 {[%clk 0:01:23]} 10. Qxg4 {[%clk 0:02:09]}  Nxe5 {[%clk 0:01:20]} 11. Qe4 {[%clk 0:02:06]}  Bg7 {[%clk 0:01:09]} 12. Nc3 {[%clk 0:01:56]}  d6 {[%clk 0:00:59]} 13. Qd5+ {[%clk 0:01:44]}  e6 {[%clk 0:00:54]} 14. Qd1 {[%clk 0:01:41]}  d5 {[%clk 0:00:44]} 15. Nf3 {[%clk 0:01:38]}  Kf7 {[%clk 0:00:33]} 16. Ng5+ {[%clk 0:01:33]}  Kg8 {[%clk 0:00:20]} 17. f4 {[%clk 0:01:25]}  Nf7 {[%clk 0:00:17]} 18. O-O {[%clk 0:01:24]}  h6 {[%clk 0:00:16]} 19. Nf3 {[%clk 0:01:19]}  Bd7 {[%clk 0:00:15]} 20. Be3 {[%clk 0:01:16]}  Kh7 {[%clk 0:00:14]} 21. Bd4 {[%clk 0:01:11]}  a6 {[%clk 0:00:13]} 22. Ne5 {[%clk 0:01:05]}  Nxe5 {[%clk 0:00:12]} 23. fxe5 {[%clk 0:01:04]}  Qe7 {[%clk 0:00:12]} 24. Ne2 {[%clk 0:01:01]}  Rhf8 {[%clk 0:00:12]} 25. Qd2 {[%clk 0:00:58]}  Bb5 {[%clk 0:00:12]} 26. Rxf8 {[%clk 0:00:56]}  Rxf8 {[%clk 0:00:13]} 27. Nc3 {[%clk 0:00:54]}  Bc4 {[%clk 0:00:13]} 28. b3 {[%clk 0:00:52]}  Bxb3 {[%clk 0:00:10]} 29. axb3 {[%clk 0:00:52]}  Qb4 {[%clk 0:00:10]} 30. Ne4 {[%clk 0:00:40]}  Qxb3 {[%clk 0:00:09]} 31. Nf6+ {[%clk 0:00:40]}  Bxf6 {[%clk 0:00:09]} 32. exf6 {[%clk 0:00:41]}  Qc4 {[%clk 0:00:08]} 33. Rf1 {[%clk 0:00:38]}  Rf7 {[%clk 0:00:07]} 34. Qf4 {[%clk 0:00:35]}  b5 {[%clk 0:00:07]} 35. Be3 {[%clk 0:00:33]}  Qxf4 {[%clk 0:00:07]} 36. Rxf4 {[%clk 0:00:33]}  e5 {[%clk 0:00:07]} 37. Rh4 {[%clk 0:00:32]}  d4 {[%clk 0:00:07]} 38. Rxh6+ {[%clk 0:00:30]}  Kg8 {[%clk 0:00:07]} 39. Rxg6+ {[%clk 0:00:29]}  Kf8 {[%clk 0:00:07]} 40. Bh6+ {[%clk 0:00:27]}  Ke8 {[%clk 0:00:08]} 41. Bg7 {[%clk 0:00:27]}  d3 {[%clk 0:00:06]} 42. Rg5 {[%clk 0:00:26]}  d2 {[%clk 0:00:05]} 43. Rxe5+ {[%clk 0:00:26]}  Kd8 {[%clk 0:00:04]} 44. Rd5+ {[%clk 0:00:23]}  Rd7 {[%clk 0:00:04]} 45. Rxd2 {[%clk 0:00:23]}  Rxd2 {[%clk 0:00:05]} 46. f7 {[%clk 0:00:24]}  Ke7 {[%clk 0:00:01]} 47. f8=Q+ {[%clk 0:00:24]}  Ke6 {[%clk 0:00:01]} 48. Qf6+ {[%clk 0:00:23]} 1-0


[Site "https://www.chess.com"]

[Event "Titled Tuesday Blitz May 23 Late 2023"]
[White "Stork, Oliver"]
[Black "Vargas, Mauricio"]
[WhiteFideId "12955728"]
[BlackFideId "4404572"]
[WhiteElo "2239"]
[BlackElo "1986"]
[Result "1-0"]
[Round "07"]
[TimeControl "180+2"]
[Date "2023.05.23"]
[WhiteClock "0:01:15"]
[BlackClock "0:00:00"]

1. e4 {[%clk 0:03:00]}  d5 {[%clk 0:02:59]} 2. exd5 {[%clk 0:03:00]}  Qxd5 {[%clk 0:03:00]} 3. Nc3 {[%clk 0:03:00]}  Qa5 {[%clk 0:03:00]} 4. d4 {[%clk 0:02:58]}  c6 {[%clk 0:03:00]} 5. Bd3 {[%clk 0:02:56]}  Nf6 {[%clk 0:03:00]} 6. Nf3 {[%clk 0:02:55]}  Bg4 {[%clk 0:02:59]} 7. h3 {[%clk 0:02:55]}  Bh5 {[%clk 0:02:59]} 8. Be3 {[%clk 0:02:54]}  e6 {[%clk 0:02:59]} 9. Qd2 {[%clk 0:02:54]}  Bd6 {[%clk 0:02:58]} 10. O-O-O {[%clk 0:02:54]}  Nbd7 {[%clk 0:02:52]} 11. Rde1 {[%clk 0:02:53]}  O-O {[%clk 0:02:32]} 12. g4 {[%clk 0:02:47]}  Bg6 {[%clk 0:02:31]} 13. Bxg6 {[%clk 0:02:40]}  hxg6 {[%clk 0:02:31]} 14. Reg1 {[%clk 0:02:41]}  Nb6 {[%clk 0:02:19]} 15. h4 {[%clk 0:02:40]}  Nc4 {[%clk 0:02:17]} 16. Qd3 {[%clk 0:02:38]}  Nxe3 {[%clk 0:02:15]} 17. fxe3 {[%clk 0:02:39]}  Nd5 {[%clk 0:02:02]} 18. Nxd5 {[%clk 0:02:36]}  cxd5 {[%clk 0:01:46]} 19. h5 {[%clk 0:02:34]}  Qxa2 {[%clk 0:01:26]} 20. Ng5 {[%clk 0:02:09]}  Qa1+ {[%clk 0:01:22]} 21. Kd2 {[%clk 0:02:09]}  Bb4+ {[%clk 0:01:21]} 22. Ke2 {[%clk 0:02:09]}  Qa6 {[%clk 0:01:20]} 23. Qxa6 {[%clk 0:01:59]}  bxa6 {[%clk 0:01:18]} 24. hxg6 {[%clk 0:01:55]}  fxg6 {[%clk 0:01:11]} 25. Rh3 {[%clk 0:01:53]}  Be7 {[%clk 0:01:08]} 26. Nxe6 {[%clk 0:01:53]}  Rf6 {[%clk 0:00:59]} 27. Rgh1 {[%clk 0:01:51]}  Rxe6 {[%clk 0:00:36]} 28. Rh8+ {[%clk 0:01:50]}  Kf7 {[%clk 0:00:36]} 29. Rxa8 {[%clk 0:01:51]}  Bg5 {[%clk 0:00:36]} 30. Rf1+ {[%clk 0:01:50]}  Ke7 {[%clk 0:00:33]} 31. Rxa7+ {[%clk 0:01:50]}  Ke8 {[%clk 0:00:30]} 32. Rf3 {[%clk 0:01:49]}  Bf6 {[%clk 0:00:24]} 33. Kd3 {[%clk 0:01:43]}  Rb6 {[%clk 0:00:17]} 34. Rh3 {[%clk 0:01:38]}  Be7 {[%clk 0:00:09]} 35. b3 {[%clk 0:01:23]}  Kf7 {[%clk 0:00:08]} 36. Rf3+ {[%clk 0:01:23]}  Ke8 {[%clk 0:00:08]} 37. Rh3 {[%clk 0:01:18]}  Kf7 {[%clk 0:00:06]} 38. Rh8 {[%clk 0:01:18]}  a5 {[%clk 0:00:00]} 39. Rc8 {[%clk 0:01:15]} 1-0


[Site "https://www.chess.com"]

[Event "Titled Tuesday Blitz May 23 Late 2023"]
[White "wang5ter"]
[Black "Jimenez Martinez, Jose Vicente"]
[BlackFideId "2264021"]
[WhiteElo "2309"]
[BlackElo "2231"]
[Result "0-1"]
[Round "07"]
[TimeControl "180+2"]
[Date "2023.05.23"]
[WhiteClock "0:00:25"]
[BlackClock "0:00:35"]

1. d4 {[%clk 0:03:00]}  d6 {[%clk 0:03:00]} 2. e4 {[%clk 0:03:00]}  g6 {[%clk 0:03:00]} 3. Nc3 {[%clk 0:03:00]}  Bg7 {[%clk 0:03:00]} 4. Nf3 {[%clk 0:03:01]}  Nf6 {[%clk 0:03:00]} 5. Be2 {[%clk 0:03:01]}  O-O {[%clk 0:03:00]} 6. O-O {[%clk 0:03:01]}  Bg4 {[%clk 0:02:59]} 7. h3 {[%clk 0:03:01]}  Bxf3 {[%clk 0:02:58]} 8. Bxf3 {[%clk 0:03:02]}  Nbd7 {[%clk 0:02:58]} 9. Be3 {[%clk 0:03:01]}  e5 {[%clk 0:02:58]} 10. dxe5 {[%clk 0:03:02]}  Nxe5 {[%clk 0:02:56]} 11. Be2 {[%clk 0:03:02]}  Re8 {[%clk 0:02:55]} 12. f4 {[%clk 0:03:00]}  Nc6 {[%clk 0:02:55]} 13. Bf3 {[%clk 0:03:01]}  a6 {[%clk 0:02:48]} 14. Qd2 {[%clk 0:03:00]}  Rb8 {[%clk 0:02:46]} 15. Rad1 {[%clk 0:03:00]}  Na5 {[%clk 0:02:46]} 16. b3 {[%clk 0:02:55]}  Nc6 {[%clk 0:02:38]} 17. Rfe1 {[%clk 0:02:37]}  Nd7 {[%clk 0:02:26]} 18. e5 {[%clk 0:02:32]}  Nf8 {[%clk 0:02:16]} 19. exd6 {[%clk 0:02:27]}  cxd6 {[%clk 0:02:16]} 20. Nd5 {[%clk 0:02:26]}  Nd7 {[%clk 0:02:09]} 21. f5 {[%clk 0:02:24]}  Nce5 {[%clk 0:02:04]} 22. Be2 {[%clk 0:02:16]}  gxf5 {[%clk 0:02:02]} 23. Rf1 {[%clk 0:02:12]}  Nc6 {[%clk 0:01:55]} 24. Rxf5 {[%clk 0:02:05]}  Ne7 {[%clk 0:01:54]} 25. Bg5 {[%clk 0:01:55]}  f6 {[%clk 0:01:38]} 26. Nxf6+ {[%clk 0:01:43]}  Nxf6 {[%clk 0:01:32]} 27. Bxf6 {[%clk 0:01:44]}  Qb6+ {[%clk 0:01:28]} 28. Kh1 {[%clk 0:01:26]}  Nxf5 {[%clk 0:01:28]} 29. Qd5+ {[%clk 0:01:26]}  Kh8 {[%clk 0:01:25]} 30. Qxf5 {[%clk 0:01:27]}  Qc7 {[%clk 0:01:02]} 31. Bd3 {[%clk 0:01:08]}  Bxf6 {[%clk 0:01:02]} 32. Qxf6+ {[%clk 0:01:08]}  Qg7 {[%clk 0:01:02]} 33. Qxd6 {[%clk 0:00:54]}  Rbd8 {[%clk 0:01:00]} 34. Qf4 {[%clk 0:00:53]}  Rf8 {[%clk 0:00:59]} 35. Qh4 {[%clk 0:00:48]}  Rd4 {[%clk 0:00:55]} 36. Qh5 {[%clk 0:00:44]}  Rdf4 {[%clk 0:00:53]} 37. Re1 {[%clk 0:00:43]}  Rf2 {[%clk 0:00:48]} 38. Be4 {[%clk 0:00:34]}  Rf1+ {[%clk 0:00:45]} 39. Rxf1 {[%clk 0:00:32]}  Rxf1+ {[%clk 0:00:46]} 40. Kh2 {[%clk 0:00:32]}  Qc7+ {[%clk 0:00:37]} 41. g3 {[%clk 0:00:32]}  Rf2+ {[%clk 0:00:36]} 42. Kg1 {[%clk 0:00:25]}  Qxg3+ {[%clk 0:00:35]} 0-1


[Site "https://www.chess.com"]

[Event "Titled Tuesday Blitz May 23 Late 2023"]
[White "Castillo Pena, Patricia Evarista"]
[Black "Roman, Rodrigo"]
[WhiteFideId "6412106"]
[BlackFideId "3701220"]
[WhiteElo "1919"]
[BlackElo "1995"]
[Result "0-1"]
[Round "07"]
[TimeControl "180+2"]
[Date "2023.05.23"]
[WhiteClock "0:00:00"]
[BlackClock "0:00:27"]

1. d4 {[%clk 0:02:59]}  Nf6 {[%clk 0:02:59]} 2. Nf3 {[%clk 0:02:57]}  e6 {[%clk 0:02:59]} 3. e3 {[%clk 0:02:56]}  b6 {[%clk 0:02:58]} 4. Bd3 {[%clk 0:02:56]}  Bb7 {[%clk 0:02:58]} 5. O-O {[%clk 0:02:55]}  d5 {[%clk 0:02:58]} 6. b3 {[%clk 0:02:55]}  Nbd7 {[%clk 0:02:58]} 7. Bb2 {[%clk 0:02:55]}  Ne4 {[%clk 0:02:56]} 8. Nbd2 {[%clk 0:02:54]}  f5 {[%clk 0:02:54]} 9. c4 {[%clk 0:02:53]}  Bd6 {[%clk 0:02:52]} 10. Ne5 {[%clk 0:02:36]}  Nxd2 {[%clk 0:02:36]} 11. Qxd2 {[%clk 0:02:36]}  dxc4 {[%clk 0:02:37]} 12. Bxc4 {[%clk 0:02:07]}  Qg5 {[%clk 0:02:23]} 13. f4 {[%clk 0:01:47]}  Qe7 {[%clk 0:02:19]} 14. d5 {[%clk 0:01:32]}  Bxe5 {[%clk 0:01:17]} 15. fxe5 {[%clk 0:01:28]}  Nc5 {[%clk 0:00:54]} 16. dxe6 {[%clk 0:01:10]}  Rd8 {[%clk 0:00:54]} 17. Qe2 {[%clk 0:01:07]}  g6 {[%clk 0:00:53]} 18. Rfd1 {[%clk 0:01:04]}  Nxe6 {[%clk 0:00:51]} 19. Rxd8+ {[%clk 0:01:01]}  Nxd8 {[%clk 0:00:49]} 20. e6 {[%clk 0:00:54]}  Rf8 {[%clk 0:00:46]} 21. Rd1 {[%clk 0:00:11]}  Nxe6 {[%clk 0:00:46]} 22. Qd2 {[%clk 0:00:04]}  Kf7 {[%clk 0:00:43]} 23. Qd7 {[%clk 0:00:00]}  Qxd7 {[%clk 0:00:27]} 0-1


[Site "https://www.chess.com"]

[Event "Titled Tuesday Blitz May 23 Late 2023"]
[White "Bortnyk, Olexandr"]
[Black "Rasulov, Vugar"]
[WhiteFideId "14120828"]
[BlackFideId "13402390"]
[WhiteElo "2734"]
[BlackElo "2509"]
[Result "0-1"]
[Round "08"]
[TimeControl "180+2"]
[Date "2023.05.23"]
[WhiteClock "0:00:00"]
[BlackClock "0:00:06"]

1. d4 {[%clk 0:03:00]}  Nf6 {[%clk 0:02:59]} 2. Nc3 {[%clk 0:02:59]}  e6 {[%clk 0:02:58]} 3. Bf4 {[%clk 0:02:57]}  Bb4 {[%clk 0:02:58]} 4. e3 {[%clk 0:02:57]}  c5 {[%clk 0:02:55]} 5. Bd3 {[%clk 0:02:52]}  Nd5 {[%clk 0:02:46]} 6. Ne2 {[%clk 0:02:50]}  cxd4 {[%clk 0:02:43]} 7. exd4 {[%clk 0:02:47]}  Nxf4 {[%clk 0:02:42]} 8. Nxf4 {[%clk 0:02:48]}  d5 {[%clk 0:02:42]} 9. O-O {[%clk 0:02:46]}  Nc6 {[%clk 0:02:32]} 10. Nce2 {[%clk 0:02:39]}  Bd6 {[%clk 0:02:30]} 11. c3 {[%clk 0:02:35]}  Qc7 {[%clk 0:02:26]} 12. g3 {[%clk 0:02:33]}  O-O {[%clk 0:02:25]} 13. Qc2 {[%clk 0:02:26]}  h6 {[%clk 0:02:24]} 14. Ng2 {[%clk 0:02:24]}  e5 {[%clk 0:02:20]} 15. dxe5 {[%clk 0:02:24]}  Nxe5 {[%clk 0:02:21]} 16. Bh7+ {[%clk 0:02:13]}  Kh8 {[%clk 0:02:21]} 17. Bf5 {[%clk 0:02:14]}  Bc5 {[%clk 0:01:58]} 18. Rad1 {[%clk 0:02:10]}  Qc6 {[%clk 0:01:38]} 19. Nef4 {[%clk 0:01:32]}  Be6 {[%clk 0:01:27]} 20. Bxe6 {[%clk 0:01:27]}  fxe6 {[%clk 0:01:28]} 21. Qe2 {[%clk 0:01:19]}  Bd6 {[%clk 0:01:11]} 22. Qh5 {[%clk 0:00:51]}  Qe8 {[%clk 0:00:59]} 23. Qxe8 {[%clk 0:00:38]}  Raxe8 {[%clk 0:01:00]} 24. Ne3 {[%clk 0:00:38]}  Nf3+ {[%clk 0:00:51]} 25. Kg2 {[%clk 0:00:38]}  Nh4+ {[%clk 0:00:51]} 26. Kh3 {[%clk 0:00:32]}  Bxf4 {[%clk 0:00:52]} 27. Kxh4 {[%clk 0:00:31]}  Bxe3 {[%clk 0:00:45]} 28. fxe3 {[%clk 0:00:32]}  Kh7 {[%clk 0:00:46]} 29. Kg4 {[%clk 0:00:27]}  Kg6 {[%clk 0:00:46]} 30. h4 {[%clk 0:00:25]}  h5+ {[%clk 0:00:43]} 31. Kh3 {[%clk 0:00:26]}  Rf5 {[%clk 0:00:35]} 32. Rf4 {[%clk 0:00:26]}  Kf6 {[%clk 0:00:30]} 33. Kg2 {[%clk 0:00:21]}  g6 {[%clk 0:00:30]} 34. Rb4 {[%clk 0:00:20]}  b6 {[%clk 0:00:29]} 35. e4 {[%clk 0:00:21]}  dxe4 {[%clk 0:00:26]} 36. Rxe4 {[%clk 0:00:22]}  Re7 {[%clk 0:00:26]} 37. Rd8 {[%clk 0:00:21]}  Ra5 {[%clk 0:00:20]} 38. a4 {[%clk 0:00:17]}  b5 {[%clk 0:00:15]} 39. axb5 {[%clk 0:00:10]}  Rxb5 {[%clk 0:00:16]} 40. b4 {[%clk 0:00:10]}  a5 {[%clk 0:00:15]} 41. Rf8+ {[%clk 0:00:08]}  Kg7 {[%clk 0:00:15]} 42. Rc8 {[%clk 0:00:06]}  axb4 {[%clk 0:00:15]} 43. cxb4 {[%clk 0:00:07]}  Kf6 {[%clk 0:00:13]} 44. Rc6 {[%clk 0:00:07]}  Kf5 {[%clk 0:00:11]} 45. Kf3 {[%clk 0:00:05]}  Kf6 {[%clk 0:00:11]} 46. Ke3 {[%clk 0:00:05]}  Kf7 {[%clk 0:00:10]} 47. Kd3 {[%clk 0:00:02]}  Rd5+ {[%clk 0:00:08]} 48. Kc4 {[%clk 0:00:03]}  Rd1 {[%clk 0:00:09]} 49. Kb5 {[%clk 0:00:03]}  e5 {[%clk 0:00:07]} 50. Rc5 {[%clk 0:00:02]}  Kf6 {[%clk 0:00:06]} 51. g4 {[%clk 0:00:02]}  hxg4 {[%clk 0:00:06]} 52. Rxg4 {[%clk 0:00:03]}  Rd4 {[%clk 0:00:06]} 53. Rc6+ {[%clk 0:00:03]}  Kf5 {[%clk 0:00:06]} 54. Rg5+ {[%clk 0:00:03]}  Ke4 {[%clk 0:00:05]} 55. Rcxg6 {[%clk 0:00:02]}  Rb7+ {[%clk 0:00:05]} 56. Kc6 {[%clk 0:00:02]}  Rbxb4 {[%clk 0:00:06]} 57. Rg4+ {[%clk 0:00:02]}  Kd3 {[%clk 0:00:06]} 58. Rxd4+ {[%clk 0:00:02]}  exd4 {[%clk 0:00:06]} 59. h5 {[%clk 0:00:02]}  Kc2 {[%clk 0:00:06]} 60. Rg2+ {[%clk 0:00:01]}  Kc3 {[%clk 0:00:06]} 61. Rh2 {[%clk 0:00:02]}  d3 {[%clk 0:00:07]} 62. h6 {[%clk 0:00:01]}  d2 {[%clk 0:00:07]} 63. Rh1 {[%clk 0:00:02]}  Rc4+ {[%clk 0:00:05]} 64. Kb5 {[%clk 0:00:01]}  Rc8 {[%clk 0:00:05]} 65. h7 {[%clk 0:00:01]}  Rh8 {[%clk 0:00:06]} 66. Kc5 {[%clk 0:00:01]}  Kc2 {[%clk 0:00:05]} 67. Rh2 {[%clk 0:00:00]}  Kc1 {[%clk 0:00:06]} 0-1


[Site "https://www.chess.com"]

[Event "Titled Tuesday Blitz May 23 Late 2023"]
[White "Nakamura, Hikaru"]
[Black "Sjugirov, Sanan"]
[WhiteFideId "2016192"]
[BlackFideId "4189302"]
[WhiteElo "2885"]
[BlackElo "2569"]
[Result "1-0"]
[Round "08"]
[TimeControl "180+2"]
[Date "2023.05.23"]
[WhiteClock "0:00:43"]
[BlackClock "0:00:02"]

1. e4 {[%clk 0:03:00]}  c5 {[%clk 0:02:59]} 2. c3 {[%clk 0:03:00]}  d5 {[%clk 0:02:58]} 3. exd5 {[%clk 0:03:00]}  Qxd5 {[%clk 0:02:59]} 4. Na3 {[%clk 0:03:01]}  Nf6 {[%clk 0:02:45]} 5. d4 {[%clk 0:02:50]}  e6 {[%clk 0:02:37]} 6. Nf3 {[%clk 0:02:46]}  cxd4 {[%clk 0:02:30]} 7. Nb5 {[%clk 0:02:46]}  Qd7 {[%clk 0:02:20]} 8. Qxd4 {[%clk 0:02:34]}  Na6 {[%clk 0:01:17]} 9. Qa4 {[%clk 0:02:26]}  Qc6 {[%clk 0:00:35]} 10. Nd6+ {[%clk 0:02:02]}  Bxd6 {[%clk 0:00:33]} 11. Bb5 {[%clk 0:02:02]}  Bd7 {[%clk 0:00:25]} 12. Bxc6 {[%clk 0:02:02]}  Bxc6 {[%clk 0:00:26]} 13. Qh4 {[%clk 0:02:01]}  Nc5 {[%clk 0:00:25]} 14. O-O {[%clk 0:01:59]}  Nce4 {[%clk 0:00:25]} 15. Nd4 {[%clk 0:01:56]}  Bd7 {[%clk 0:00:25]} 16. Rd1 {[%clk 0:01:54]}  Be7 {[%clk 0:00:25]} 17. f3 {[%clk 0:01:51]}  Nc5 {[%clk 0:00:22]} 18. Nb3 {[%clk 0:01:44]}  Nd5 {[%clk 0:00:19]} 19. Bg5 {[%clk 0:01:40]}  f6 {[%clk 0:00:19]} 20. Rxd5 {[%clk 0:01:03]}  exd5 {[%clk 0:00:12]} 21. Be3 {[%clk 0:00:53]}  Nxb3 {[%clk 0:00:09]} 22. axb3 {[%clk 0:00:54]}  O-O {[%clk 0:00:08]} 23. Qd4 {[%clk 0:00:51]}  Bc6 {[%clk 0:00:08]} 24. Rxa7 {[%clk 0:00:51]}  Rae8 {[%clk 0:00:08]} 25. Qd3 {[%clk 0:00:47]}  f5 {[%clk 0:00:06]} 26. b4 {[%clk 0:00:46]}  f4 {[%clk 0:00:06]} 27. Bf2 {[%clk 0:00:45]}  Bf6 {[%clk 0:00:03]} 28. b5 {[%clk 0:00:44]}  Bd7 {[%clk 0:00:03]} 29. Rxb7 {[%clk 0:00:43]}  Be6 {[%clk 0:00:04]} 30. b6 {[%clk 0:00:42]}  Ra8 {[%clk 0:00:02]} 31. Ra7 {[%clk 0:00:43]} 1-0


[Site "https://www.chess.com"]

[Event "Titled Tuesday Blitz May 23 Late 2023"]
[White "Nihal Sarin"]
[Black "Zakhartsov, Vladimir"]
[WhiteFideId "25092340"]
[BlackFideId "4145097"]
[WhiteElo "2689"]
[BlackElo "2495"]
[Result "1-0"]
[Round "08"]
[TimeControl "180+2"]
[Date "2023.05.23"]
[WhiteClock "0:00:04"]
[BlackClock "0:00:00"]

1. e4 {[%clk 0:02:59]}  c5 {[%clk 0:02:58]} 2. Nc3 {[%clk 0:02:58]}  d6 {[%clk 0:02:51]} 3. Nf3 {[%clk 0:02:58]}  Nf6 {[%clk 0:02:50]} 4. e5 {[%clk 0:02:59]}  dxe5 {[%clk 0:02:51]} 5. Nxe5 {[%clk 0:03:00]}  e6 {[%clk 0:02:51]} 6. g3 {[%clk 0:02:57]}  Nbd7 {[%clk 0:02:39]} 7. Nc4 {[%clk 0:02:57]}  Nb6 {[%clk 0:02:37]} 8. Ne3 {[%clk 0:02:56]}  Nbd5 {[%clk 0:02:31]} 9. Bg2 {[%clk 0:02:54]}  Nxe3 {[%clk 0:02:28]} 10. fxe3 {[%clk 0:02:54]}  h5 {[%clk 0:02:28]} 11. b3 {[%clk 0:02:43]}  h4 {[%clk 0:02:27]} 12. Bb2 {[%clk 0:02:44]}  Bd6 {[%clk 0:02:20]} 13. Qf3 {[%clk 0:02:35]}  Bd7 {[%clk 0:01:54]} 14. Qxb7 {[%clk 0:02:33]}  Rb8 {[%clk 0:01:53]} 15. Qf3 {[%clk 0:02:22]}  Qc7 {[%clk 0:01:50]} 16. gxh4 {[%clk 0:02:11]}  Rxh4 {[%clk 0:01:47]} 17. O-O-O {[%clk 0:02:11]}  c4 {[%clk 0:01:44]} 18. Qf2 {[%clk 0:02:10]}  Rh5 {[%clk 0:01:42]} 19. Bf3 {[%clk 0:01:58]}  Ra5 {[%clk 0:01:39]} 20. Rhg1 {[%clk 0:01:50]}  cxb3 {[%clk 0:01:37]} 21. axb3 {[%clk 0:01:47]}  g6 {[%clk 0:00:59]} 22. Qh4 {[%clk 0:01:46]}  Nh5 {[%clk 0:00:55]} 23. Kb1 {[%clk 0:01:12]}  Be7 {[%clk 0:00:41]} 24. Qf2 {[%clk 0:01:08]}  Bc6 {[%clk 0:00:35]} 25. Rdf1 {[%clk 0:01:01]}  Bxf3 {[%clk 0:00:25]} 26. Qxf3 {[%clk 0:01:02]}  Rf5 {[%clk 0:00:26]} 27. Qe2 {[%clk 0:01:00]}  Rxf1+ {[%clk 0:00:24]} 28. Rxf1 {[%clk 0:01:01]}  Qc6 {[%clk 0:00:20]} 29. e4 {[%clk 0:00:47]}  a5 {[%clk 0:00:11]} 30. Qf2 {[%clk 0:00:43]}  f5 {[%clk 0:00:05]} 31. exf5 {[%clk 0:00:39]}  exf5 {[%clk 0:00:06]} 32. Re1 {[%clk 0:00:34]}  Kf7 {[%clk 0:00:05]} 33. Qa7 {[%clk 0:00:35]}  Rb7 {[%clk 0:00:04]} 34. Qxa5 {[%clk 0:00:36]}  Nf6 {[%clk 0:00:04]} 35. Qa8 {[%clk 0:00:30]}  Rc7 {[%clk 0:00:04]} 36. Qh8 {[%clk 0:00:20]}  Qg2 {[%clk 0:00:02]} 37. Nb5 {[%clk 0:00:18]}  Rd7 {[%clk 0:00:01]} 38. Rxe7+ {[%clk 0:00:17]}  Rxe7 {[%clk 0:00:01]} 39. Qxf6+ {[%clk 0:00:17]}  Ke8 {[%clk 0:00:01]} 40. Ba3 {[%clk 0:00:12]}  Re1+ {[%clk 0:00:01]} 41. Kb2 {[%clk 0:00:13]}  Qxd2 {[%clk 0:00:01]} 42. Qc6+ {[%clk 0:00:07]}  Kf7 {[%clk 0:00:01]} 43. Nd6+ {[%clk 0:00:07]}  Kg7 {[%clk 0:00:01]} 44. Qc3+ {[%clk 0:00:03]}  Qxc3+ {[%clk 0:00:01]} 45. Kxc3 {[%clk 0:00:04]}  f4 {[%clk 0:00:02]} 46. Bc5 {[%clk 0:00:03]}  f3 {[%clk 0:00:02]} 47. b4 {[%clk 0:00:04]}  Re2 {[%clk 0:00:02]} 48. Kd3 {[%clk 0:00:03]}  Rxh2 {[%clk 0:00:02]} 49. Ne4 {[%clk 0:00:02]}  Kf7 {[%clk 0:00:01]} 50. Ng5+ {[%clk 0:00:02]}  Ke8 {[%clk 0:00:01]} 51. Nxf3 {[%clk 0:00:03]}  Rh3 {[%clk 0:00:02]} 52. Ke4 {[%clk 0:00:04]}  Kd7 {[%clk 0:00:02]} 53. c4 {[%clk 0:00:04]}  Rh1 {[%clk 0:00:01]} 54. b5 {[%clk 0:00:04]}  Rc1 {[%clk 0:00:00]} 55. Bd4 {[%clk 0:00:04]} 1-0


[Site "https://www.chess.com"]

[Event "Titled Tuesday Blitz May 23 Late 2023"]
[White "Hakobyan, Aram"]
[Black "Simonian, Hrair"]
[WhiteFideId "13306677"]
[BlackFideId "13302337"]
[WhiteElo "2584"]
[BlackElo "2447"]
[Result "1-0"]
[Round "08"]
[TimeControl "180+2"]
[Date "2023.05.23"]
[WhiteClock "0:00:02"]
[BlackClock "0:00:00"]

1. d4 {[%clk 0:03:00]}  Nf6 {[%clk 0:03:00]} 2. c4 {[%clk 0:02:59]}  b6 {[%clk 0:02:58]} 3. Nc3 {[%clk 0:02:59]}  Bb7 {[%clk 0:02:57]} 4. Qc2 {[%clk 0:02:59]}  d5 {[%clk 0:02:56]} 5. cxd5 {[%clk 0:02:59]}  Nxd5 {[%clk 0:02:57]} 6. Nf3 {[%clk 0:02:59]}  e6 {[%clk 0:02:56]} 7. e4 {[%clk 0:02:59]}  Nxc3 {[%clk 0:02:56]} 8. bxc3 {[%clk 0:03:00]}  c5 {[%clk 0:02:49]} 9. Bb5+ {[%clk 0:02:59]}  Bc6 {[%clk 0:02:47]} 10. Bd3 {[%clk 0:02:55]}  cxd4 {[%clk 0:02:44]} 11. cxd4 {[%clk 0:02:52]}  Bb4+ {[%clk 0:02:44]} 12. Kf1 {[%clk 0:02:44]}  O-O {[%clk 0:02:42]} 13. Bb2 {[%clk 0:02:41]}  Bb7 {[%clk 0:02:39]} 14. h4 {[%clk 0:02:29]}  Nd7 {[%clk 0:02:32]} 15. Rh3 {[%clk 0:02:30]}  Rc8 {[%clk 0:02:28]} 16. Qb3 {[%clk 0:02:29]}  Bd6 {[%clk 0:02:22]} 17. e5 {[%clk 0:02:27]}  Be7 {[%clk 0:02:20]} 18. Ng5 {[%clk 0:02:27]}  g6 {[%clk 0:02:16]} 19. Rg3 {[%clk 0:02:07]}  Bd5 {[%clk 0:02:09]} 20. Qd1 {[%clk 0:02:07]}  Bc4 {[%clk 0:02:05]} 21. Ne4 {[%clk 0:01:49]}  Bxh4 {[%clk 0:01:49]} 22. Rh3 {[%clk 0:01:49]}  Be7 {[%clk 0:01:30]} 23. Kg1 {[%clk 0:01:49]}  Bxd3 {[%clk 0:01:23]} 24. Qxd3 {[%clk 0:01:49]}  f5 {[%clk 0:01:22]} 25. exf6 {[%clk 0:01:46]}  Nxf6 {[%clk 0:01:21]} 26. Ng5 {[%clk 0:01:45]}  Nh5 {[%clk 0:00:37]} 27. Nxe6 {[%clk 0:01:26]}  Qd5 {[%clk 0:00:36]} 28. Re3 {[%clk 0:01:06]}  Rf7 {[%clk 0:00:28]} 29. Re5 {[%clk 0:01:05]}  Qc4 {[%clk 0:00:27]} 30. Qe3 {[%clk 0:00:48]}  Qa4 {[%clk 0:00:25]} 31. Rxh5 {[%clk 0:00:38]}  Rc2 {[%clk 0:00:14]} 32. Re5 {[%clk 0:00:11]}  Rxb2 {[%clk 0:00:12]} 33. Rf1 {[%clk 0:00:11]}  Qxa2 {[%clk 0:00:07]} 34. Nf4 {[%clk 0:00:09]}  Bd6 {[%clk 0:00:04]} 35. Re8+ {[%clk 0:00:09]}  Bf8 {[%clk 0:00:04]} 36. Ne6 {[%clk 0:00:09]}  Re2 {[%clk 0:00:03]} 37. Qh3 {[%clk 0:00:05]}  Rexf2 {[%clk 0:00:00]} 38. Re1 {[%clk 0:00:02]} 1-0


[Site "https://www.chess.com"]